fUST/lending_fUST_20250627
["ID","MTS","AMOUNT","RATE_DAILY","PERIOD"]
[368071509,1751016642013,-575.118961,0.00020027,2]
[368071511,1751016642023,-153.0,0.00020027,2]
[368071513,1751016642033,-575.118961,0.00020027,2]
[368071515,1751016642042,-159.2394861,0.00020027,2]
[368071516,1751016642051,-159.2394861,0.00020027,2]
[368071518,1751016642060,-153.0,0.00020027,2]
[368071520,1751016642069,-159.2394861,0.00020027,2]
[368071522,1751016642078,-153.0,0.00020027,2]
[368071524,1751016642088,-159.2394861,0.00020027,2]
[368071526,1751016642098,-159.2394861,0.00020027,2]
[368071528,1751016642107,-159.2394861,0.00020027,2]
[368071530,1751016642116,-153.0,0.00020027,2]
[368071532,1751016642125,-153.0,0.00020027,2]
[368071537,1751016642165,-500.0,0.00020029,2]
[368071539,1751016642174,-500.0,0.00020029,2]
[368071541,1751016642184,-500.0,0.00020029,2]
[368071543,1751016642193,-500.98945024,0.00020032,2]
[368071545,1751016642202,-500.0,0.00020032,2]
[368071547,1751016642211,-300.56217115,0.00020035,2]
[368071549,1751016642221,-500.81995879,0.00020038,2]
[368071551,1751016642230,-743.77879375,0.00020047,2]
[368071553,1751016642239,-730.4900384,0.00020055,2]
[368071555,1751016642248,-500.0,0.00020065,2]
[368071557,1751016642258,-172.0,0.00020098,2]
[368071559,1751016642267,-160.0,0.0002019,2]
[368071561,1751016642276,-836.98798914,0.0002019,2]
[368071563,1751016642285,-12562.41216491,0.0002019,2]
[368071565,1751016642294,-847.04181546,0.0002019,2]
[368071567,1751016642304,-214.91804724,0.0002019,2]
[368071569,1751016642313,-230.26210603,0.0002019,2]
[368071571,1751016642322,-160.0,0.0002019,2]
[368071573,1751016642331,-160.0,0.0002019,2]
[368071575,1751016642340,-160.0,0.0002019,2]
[368071577,1751016642349,-213.75309343,0.0002019,2]
[368071579,1751016642359,-160.0,0.0002019,2]
[368071581,1751016642368,-524.32400359,0.0002019,2]
[368071583,1751016642377,-172.0,0.00020194,2]
[368071585,1751016642386,-151.0,0.000202,3]
[368071587,1751016642395,-912.0,0.00020204,2]
[368071589,1751016642404,-172.0,0.00020209,2]
[368071591,1751016642413,-1567.163924,0.00020235,2]
[368071593,1751016642423,-460.0,0.00020273,2]
[368071595,1751016642435,-460.0,0.00020273,2]
[368071597,1751016642444,-477.99,0.00020273,2]
[368071599,1751016642454,-460.0,0.00020273,2]
[368071601,1751016642463,-901.81,0.00020273,2]
[368071603,1751016642477,-179.91181539,0.00020273,2]
[368071605,1751016642486,-178.28551648,0.00020273,2]
[368071607,1751016642495,-460.0,0.00020273,2]
[368071609,1751016642505,-460.0,0.00020273,2]
[368071611,1751016642516,-460.0,0.00020273,2]
[368071613,1751016642525,-460.0,0.00020273,2]
[368071615,1751016642534,-699.39,0.00020273,2]
[368071616,1751016642542,-460.0,0.00020273,2]
[368071618,1751016642555,-460.0,0.00020273,2]
[368071621,1751016642565,-3819.43,0.00020273,2]
[368071622,1751016642574,-460.0,0.00020273,2]
[368071624,1751016642583,-986.14,0.00020273,2]
[368071626,1751016642592,-2932.92,0.00020273,2]
[368071628,1751016642601,-460.0,0.00020273,2]
[368071630,1751016642611,-646.04,0.00020273,2]
[368071632,1751016642620,-642.68,0.00020273,2]
[368071634,1751016642629,-460.0,0.00020273,2]
[368071636,1751016642638,-1329.54,0.00020273,2]
[368071638,1751016642647,-484.59,0.00020273,2]
[368071640,1751016642657,-460.0,0.00020273,2]
[368071642,1751016642666,-460.0,0.00020273,2]
[368071644,1751016642675,-460.0,0.00020273,2]
[368071646,1751016642684,-1883.98,0.00020273,2]
[368071648,1751016642694,-3575.17,0.00020273,2]
[368071650,1751016642703,-460.0,0.00020273,2]
[368071652,1751016642713,-460.0,0.00020273,2]
[368071654,1751016642722,-460.0,0.00020273,2]
[368071656,1751016642731,-1982.64,0.00020273,2]
[368071658,1751016642741,-1789.85,0.00020273,2]
[368071660,1751016642750,-673.65,0.00020273,2]
[368071662,1751016642759,-2406.27,0.00020273,2]
[368071664,1751016642769,-460.0,0.00020273,2]
[368071666,1751016642778,-837.76,0.00020273,2]
[368071668,1751016642787,-720.8,0.00020273,2]
[368071670,1751016642797,-730.18,0.00020273,2]
[368071672,1751016642806,-460.0,0.00020273,2]
[368071674,1751016642815,-550.37,0.00020273,2]
[368071676,1751016642824,-460.0,0.00020273,2]
[368071678,1751016642834,-1098.71,0.00020273,2]
[368071680,1751016642843,-460.0,0.00020273,2]
[368071682,1751016642852,-460.0,0.00020273,2]
[368071684,1751016642861,-460.0,0.00020273,2]
[368071686,1751016642871,-474.83927704,0.00020273,2]
[368071688,1751016642881,-558.07,0.00020273,2]
[368071690,1751016642890,-898.65,0.00020273,2]
[368071692,1751016642899,-5779.62,0.00020273,2]
[368071694,1751016642908,-590.74,0.00020273,2]
[368071696,1751016642917,-526.38,0.00020273,2]
[368071698,1751016642926,-1980.01,0.00020273,2]
[368071700,1751016642935,-1317.97,0.00020273,2]
[368071702,1751016642944,-460.0,0.00020273,2]
[368071704,1751016642954,-460.0,0.00020273,2]
[368071706,1751016642963,-771.96,0.00020273,2]
[368071708,1751016642973,-571.24,0.00020273,2]
[368071710,1751016642982,-460.0,0.00020273,2]
[368071711,1751016642991,-460.0,0.00020273,2]
[368071713,1751016643001,-7232.07,0.00020273,2]
[368071715,1751016643011,-592.45743595,0.00020273,2]
[368071717,1751016643020,-3215.16,0.00020273,2]
[368071720,1751016643030,-3874.15,0.00020273,2]
[368071722,1751016643039,-460.0,0.00020273,2]
[368071724,1751016643049,-258.82356254,0.00020273,2]
[368071726,1751016643059,-714.22,0.00020273,2]
[368071728,1751016643068,-172.0,0.00020292,2]
[368071730,1751016643078,-587.58906329,0.00020301,2]
[368071732,1751016643087,-891.16181352,0.00020303,2]
[368071734,1751016643097,-172.317532,0.00020349,2]
[368071736,1751016643106,-172.317532,0.00020349,2]
[368071738,1751016643115,-151.0,0.00020349,2]
[368071739,1751016643124,-314.865912,0.00020349,2]
[368071742,1751016643134,-314.865912,0.00020349,2]
[368071744,1751016643144,-151.0,0.00020349,2]
[368071745,1751016643153,-154.393851,0.00020349,2]
[368071747,1751016643163,-151.0,0.00020349,2]
[368071749,1751016643172,-151.0,0.00020349,2]
[368071751,1751016643182,-151.0,0.00020349,2]
[368071754,1751016643193,-151.0,0.00020349,2]
[368071755,1751016643202,-155.279118,0.00020349,2]
[368071758,1751016643212,-155.279118,0.00020349,2]
[368071760,1751016643227,-151.0,0.00020349,2]
[368071761,1751016643237,-151.598614,0.00020349,2]
[368071762,1751016643247,-151.0,0.00020349,2]
[368071764,1751016643257,-151.0,0.00020349,2]
[368071767,1751016643267,-1964.137314,0.00020349,2]
[368071769,1751016643276,-1964.137314,0.00020349,2]
[368071770,1751016643286,-151.0,0.00020349,2]
[368071773,1751016643295,-151.0,0.00020349,2]
[368071775,1751016643305,-151.0,0.00020349,2]
[368071777,1751016643315,-151.0,0.00020349,2]
[368071778,1751016643324,-207.4,0.00020349,2]
[368071781,1751016643334,-500.0,0.00020349,2]
[368071783,1751016643343,-151.0,0.00020349,2]
[368071785,1751016643353,-5000.0,0.00020349,2]
[368071787,1751016643363,-151.0,0.00020349,2]
[368071789,1751016643373,-500.0,0.00020349,2]
[368071790,1751016643382,-151.0,0.00020349,2]
[368071793,1751016643393,-500.0,0.00020349,2]
[368071795,1751016643402,-151.0,0.00020349,2]
[368071797,1751016643412,-666.0,0.00020349,2]
[368071799,1751016643422,-200.0,0.00020349,2]
[368071801,1751016643432,-151.0,0.00020349,2]
[368071803,1751016643442,-300.0,0.00020349,2]
[368071805,1751016643451,-151.0,0.00020349,2]
[368071807,1751016643460,-4290.37088558,0.00020349,2]
[368071809,1751016643471,-500.0,0.00020349,2]
[368071811,1751016643484,-500.0,0.00020349,2]
[368071813,1751016643493,-500.0,0.00020349,2]
[368071815,1751016643502,-500.0,0.00020349,2]
[368071816,1751016643512,-151.0,0.00020349,2]
[368071819,1751016643522,-500.0,0.00020349,2]
[368071820,1751016643531,-500.0,0.00020349,2]
[368071823,1751016643541,-151.0,0.00020349,2]
[368071825,1751016643553,-500.0,0.00020349,2]
[368071827,1751016643563,-151.0,0.00020349,2]
[368071829,1751016643573,-500.0,0.00020349,2]
[368071831,1751016643583,-500.0,0.00020349,2]
[368071833,1751016643593,-151.0,0.00020349,2]
[368071835,1751016643602,-500.0,0.00020349,2]
[368071837,1751016643612,-500.0,0.00020349,2]
[368071839,1751016643621,-151.0,0.00020349,2]
[368071841,1751016643631,-548.28375345,0.00020349,2]
[368071843,1751016643641,-151.0,0.00020349,2]
[368071845,1751016643650,-500.0,0.00020349,2]
[368071847,1751016643660,-151.0,0.00020349,2]
[368071849,1751016643670,-500.0,0.00020349,2]
[368071851,1751016643679,-151.0,0.00020349,2]
[368071853,1751016643689,-500.0,0.00020349,2]
[368071855,1751016643699,-246.62150823,0.00020349,2]
[368071857,1751016643709,-500.0,0.00020349,2]
[368071859,1751016643718,-500.0,0.00020349,2]
[368071861,1751016643728,-500.0,0.00020349,2]
[368071863,1751016643738,-500.0,0.00020349,2]
[368071865,1751016643748,-511.88531974,0.00020349,2]
[368071867,1751016643758,-25000.0,0.00020349,2]
[368071869,1751016643767,-17435.06637668,0.00020349,2]
[368071871,1751016643777,-955.08571674,0.00020378,2]
[368071874,1751016643787,-172.0,0.00020383,2]
[368071876,1751016643796,-172.0,0.00020398,2]
[368071878,1751016643806,-151.0,0.000204,4]
[368071880,1751016643816,-690.642,0.00020404,2]
[368071882,1751016643826,-500.0,0.00020418,2]
[368071884,1751016643835,-617.83311831,0.00020418,2]
[368071886,1751016643845,-395.67986745,0.00020418,2]
[368071888,1751016643854,-1000.0,0.00020419,2]
[368071890,1751016643865,-1000.0,0.00020419,2]
[368071892,1751016643874,-1002.16347564,0.00020419,2]
[368071894,1751016643884,-1000.0,0.00020419,2]
[368071896,1751016643894,-506.63485112,0.00020419,2]
[368071898,1751016643904,-500.0,0.00020419,2]
[368071900,1751016643914,-1000.0,0.00020419,2]
[368071902,1751016643924,-1000.0,0.00020419,2]
[368071904,1751016643933,-2203.51829621,0.00020448,2]
[368071906,1751016643943,-716.195754,0.00020459,2]
[368071908,1751016643953,-500.0,0.00020475,2]
[368071911,1751016643962,-742.6949969,0.00020514,2]
[368071913,1751016643972,-460.0,0.00020547,2]
[368071914,1751016643981,-151.0,0.00020547,2]
[368071917,1751016643991,-152.369318,0.00020547,2]
[368071919,1751016644001,-151.0,0.00020547,2]
[368071921,1751016644010,-151.0,0.00020547,2]
[368071923,1751016644020,-151.0,0.00020547,2]
[368071925,1751016644030,-151.0,0.00020547,2]
[368071927,1751016644039,-151.0,0.00020547,2]
[368071929,1751016644049,-460.0,0.00020547,2]
[368071931,1751016644058,-477.99,0.00020547,2]
[368071933,1751016644068,-151.0,0.00020547,2]
[368071935,1751016644078,-460.0,0.00020547,2]
[368071937,1751016644087,-151.0,0.00020547,2]
[368071939,1751016644097,-151.0,0.00020547,2]
[368071941,1751016644106,-901.81,0.00020547,2]
[368071943,1751016644115,-360.129631,0.00020547,2]
[368071945,1751016644124,-151.0,0.00020547,2]
[368071947,1751016644134,-151.0,0.00020547,2]
[368071949,1751016644144,-151.546194,0.00020547,2]
[368071951,1751016644153,-166.696243,0.00020547,2]
[368071953,1751016644163,-166.696243,0.00020547,2]
[368071955,1751016644173,-151.0,0.00020547,2]
[368071957,1751016644183,-151.0,0.00020547,2]
[368071959,1751016644192,-151.0,0.00020547,2]
[368071961,1751016644202,-151.0,0.00020547,2]
[368071963,1751016644212,-460.0,0.00020547,2]
[368071965,1751016644222,-151.709042,0.00020547,2]
[368071967,1751016644231,-228.475322,0.00020547,2]
[368071969,1751016644241,-182.422505,0.00020547,2]
[368071971,1751016644250,-182.422505,0.00020547,2]
[368071973,1751016644260,-236.279009,0.00020547,2]
[368071975,1751016644269,-460.0,0.00020547,2]
[368071977,1751016644279,-151.0,0.00020547,2]
[368071979,1751016644288,-151.0,0.00020547,2]
[368071981,1751016644298,-203.715758,0.00020547,2]
[368071983,1751016644308,-151.0,0.00020547,2]
[368071985,1751016644317,-460.0,0.00020547,2]
[368071987,1751016644327,-203.715758,0.00020547,2]
[368071989,1751016644336,-151.0,0.00020547,2]
[368071991,1751016644346,-460.0,0.00020547,2]
[368071993,1751016644355,-699.39,0.00020547,2]
[368071995,1751016644366,-151.0,0.00020547,2]
[368071997,1751016644375,-151.0,0.00020547,2]
[368071999,1751016644385,-151.0,0.00020547,2]
[368072001,1751016644394,-151.0,0.00020547,2]
[368072003,1751016644404,-460.0,0.00020547,2]
[368072005,1751016644413,-151.0,0.00020547,2]
[368072007,1751016644423,-460.0,0.00020547,2]
[368072009,1751016644434,-294.71009,0.00020547,2]
[368072011,1751016644444,-294.71009,0.00020547,2]
[368072013,1751016644454,-3819.43,0.00020547,2]
[368072015,1751016644463,-460.0,0.00020547,2]
[368072017,1751016644474,-986.14,0.00020547,2]
[368072019,1751016644485,-2932.92,0.00020547,2]
[368072021,1751016644494,-460.0,0.00020547,2]
[368072023,1751016644503,-646.04,0.00020547,2]
[368072025,1751016644513,-151.985088,0.00020547,2]
[368072027,1751016644524,-642.68,0.00020547,2]
[368072029,1751016644533,-151.0,0.00020547,2]
[368072031,1751016644543,-460.0,0.00020547,2]
[368072033,1751016644555,-1329.54,0.00020547,2]
[368072035,1751016644564,-484.59,0.00020547,2]
[368072037,1751016644574,-460.0,0.00020547,2]
[368072039,1751016644583,-460.0,0.00020547,2]
[368072042,1751016644593,-151.0,0.00020547,2]
[368072044,1751016644603,-460.0,0.00020547,2]
[368072046,1751016644613,-151.0,0.00020547,2]
[368072048,1751016644623,-1883.98,0.00020547,2]
[368072050,1751016644633,-3575.17,0.00020547,2]
[368072051,1751016644643,-460.0,0.00020547,2]
[368072052,1751016644653,-151.0,0.00020547,2]
[368072053,1751016644663,-577.41412611,0.00020547,2]
[368072054,1751016644673,-1052.281983,0.00020547,2]
[368072055,1751016644683,-460.0,0.00020547,2]
[368072056,1751016644693,-1982.64,0.00020547,2]
[368072057,1751016644703,-1052.281983,0.00020547,2]
[368072058,1751016644713,-1789.85,0.00020547,2]
[368072059,1751016644723,-673.65,0.00020547,2]
[368072060,1751016644732,-151.0,0.00020547,2]
[368072061,1751016644742,-2406.27,0.00020547,2]
[368072062,1751016644751,-460.0,0.00020547,2]
[368072063,1751016644761,-837.76,0.00020547,2]
[368072064,1751016644771,-720.8,0.00020547,2]
[368072065,1751016644780,-730.18,0.00020547,2]
[368072066,1751016644790,-460.0,0.00020547,2]
[368072067,1751016644799,-550.37,0.00020547,2]
[368072068,1751016644809,-460.0,0.00020547,2]
[368072069,1751016644819,-1098.71,0.00020547,2]
[368072070,1751016644828,-151.0,0.00020547,2]
[368072071,1751016644838,-151.0,0.00020547,2]
[368072072,1751016644847,-151.0,0.00020547,2]
[368072073,1751016644857,-460.0,0.00020547,2]
[368072074,1751016644867,-151.0,0.00020547,2]
[368072075,1751016644877,-460.0,0.00020547,2]
[368072076,1751016644886,-460.0,0.00020547,2]
[368072078,1751016644896,-558.07,0.00020547,2]
[368072080,1751016644905,-898.65,0.00020547,2]
[368072082,1751016644915,-5779.62,0.00020547,2]
[368072084,1751016644924,-590.74,0.00020547,2]
[368072086,1751016644934,-526.38,0.00020547,2]
[368072087,1751016644944,-1980.01,0.00020547,2]
[368072088,1751016644954,-1317.97,0.00020547,2]
[368072089,1751016644963,-460.0,0.00020547,2]
[368072090,1751016644973,-425.68,0.00020547,2]
[368072091,1751016644983,-771.96,0.00020547,2]
[368072092,1751016644992,-571.24,0.00020547,2]
[368072093,1751016645002,-460.0,0.00020547,2]
[368072094,1751016645011,-460.0,0.00020547,2]
[368072095,1751016645022,-7232.07,0.00020547,2]
[368072096,1751016645032,-3215.16,0.00020547,2]
[368072097,1751016645045,-3874.15,0.00020547,2]
[368072098,1751016645056,-460.0,0.00020547,2]
[368072099,1751016645067,-714.22,0.00020547,2]
[368072100,1751016645077,-770.17471178,0.00020569,2]
[368072101,1751016645087,-500.0,0.00020577,2]
[368072102,1751016645097,-1000.0,0.00020577,2]
[368072103,1751016645107,-1017.33332786,0.00020577,2]
[368072104,1751016645117,-1000.0,0.0002058,2]
[368072105,1751016645127,-912.0,0.00020595,2]
[368072106,1751016645137,-4662.34,0.000206,2]
[368072107,1751016645147,-151.0,0.000206,4]
[368072108,1751016645157,-798.67117612,0.00020624,2]
[368072109,1751016645167,-828.22200964,0.00020679,2]
[368072110,1751016645177,-858.86622399,0.00020734,2]
[368072111,1751016645187,-404.02340636,0.00020789,2]
[368072112,1751016645197,-151.0,0.000208,4]
[368072113,1751016645207,-157.10844,0.00020821,2]
[368072114,1751016645217,-460.0,0.00020821,2]
[368072115,1751016645327,-151.0,0.00020821,2]
[368072116,1751016645351,-151.0,0.00020821,2]
[368072117,1751016645361,-151.0,0.00020821,2]
[368072118,1751016645371,-460.0,0.00020821,2]
[368072119,1751016645380,-477.99,0.00020821,2]
[368072120,1751016645389,-901.81,0.00020821,2]
[368072121,1751016645399,-460.0,0.00020821,2]
[368072122,1751016645408,-460.0,0.00020821,2]
[368072123,1751016645417,-460.0,0.00020821,2]
[368072124,1751016645426,-460.0,0.00020821,2]
[368072125,1751016645436,-699.39,0.00020821,2]
[368072126,1751016645445,-460.0,0.00020821,2]
[368072127,1751016645454,-460.0,0.00020821,2]
[368072128,1751016645463,-460.0,0.00020821,2]
[368072129,1751016645475,-3819.43,0.00020821,2]
[368072130,1751016645485,-986.14,0.00020821,2]
[368072131,1751016645494,-2932.92,0.00020821,2]
[368072132,1751016645503,-460.0,0.00020821,2]
[368072133,1751016645513,-646.04,0.00020821,2]
[368072134,1751016645523,-642.68,0.00020821,2]
[368072135,1751016645533,-460.0,0.00020821,2]
[368072136,1751016645542,-1329.54,0.00020821,2]
[368072137,1751016645552,-484.59,0.00020821,2]
[368072138,1751016645563,-460.0,0.00020821,2]
[368072139,1751016645572,-460.0,0.00020821,2]
[368072140,1751016645581,-460.0,0.00020821,2]
[368072141,1751016645590,-172.317532,0.00020821,2]
[368072142,1751016645600,-1883.98,0.00020821,2]
[368072143,1751016645610,-3575.17,0.00020821,2]
[368072144,1751016645620,-172.317532,0.00020821,2]
[368072145,1751016645630,-460.0,0.00020821,2]
[368072146,1751016645640,-460.0,0.00020821,2]
[368072147,1751016645649,-1982.64,0.00020821,2]
[368072148,1751016645659,-1789.85,0.00020821,2]
[368072149,1751016645668,-673.65,0.00020821,2]
[368072150,1751016645678,-2406.27,0.00020821,2]
[368072151,1751016645690,-460.0,0.00020821,2]
[368072152,1751016645699,-837.76,0.00020821,2]
[368072153,1751016645708,-314.865912,0.00020821,2]
[368072154,1751016645718,-314.865912,0.00020821,2]
[368072155,1751016645727,-720.8,0.00020821,2]
[368072156,1751016645736,-730.18,0.00020821,2]
[368072157,1751016645745,-152.868998,0.00020821,2]
[368072158,1751016645755,-460.0,0.00020821,2]
[368072159,1751016645764,-550.37,0.00020821,2]
[368072160,1751016645774,-460.0,0.00020821,2]
[368072161,1751016645783,-1098.71,0.00020821,2]
[368072162,1751016645792,-460.0,0.00020821,2]
[368072163,1751016645802,-460.0,0.00020821,2]
[368072164,1751016645811,-460.0,0.00020821,2]
[368072165,1751016645820,-151.0,0.00020821,2]
[368072166,1751016645830,-151.0,0.00020821,2]
[368072167,1751016645840,-558.07,0.00020821,2]
[368072168,1751016645850,-898.65,0.00020821,2]
[368072169,1751016645860,-5779.62,0.00020821,2]
[368072170,1751016645870,-590.74,0.00020821,2]
[368072171,1751016645879,-152.940868,0.00020821,2]
[368072172,1751016645888,-526.38,0.00020821,2]
[368072173,1751016645897,-1980.01,0.00020821,2]
[368072174,1751016645907,-155.279118,0.00020821,2]
[368072175,1751016645916,-155.279118,0.00020821,2]
[368072176,1751016645926,-151.0,0.00020821,2]
[368072177,1751016645935,-1317.97,0.00020821,2]
[368072178,1751016645944,-460.0,0.00020821,2]
[368072179,1751016645953,-151.0,0.00020821,2]
[368072180,1751016645962,-151.0,0.00020821,2]
[368072181,1751016645972,-771.96,0.00020821,2]
[368072182,1751016645981,-1964.137314,0.00020821,2]
[368072183,1751016645991,-1964.137314,0.00020821,2]
[368072184,1751016646000,-151.0,0.00020821,2]
[368072185,1751016646010,-151.0,0.00020821,2]
[368072186,1751016646019,-571.24,0.00020821,2]
[368072187,1751016646029,-460.0,0.00020821,2]
[368072188,1751016646038,-151.0,0.00020821,2]
[368072189,1751016646048,-460.0,0.00020821,2]
[368072190,1751016646057,-7232.07,0.00020821,2]
[368072191,1751016646067,-3215.16,0.00020821,2]
[368072192,1751016646077,-460.0,0.00020821,2]
[368072193,1751016646087,-3874.15,0.00020821,2]
[368072194,1751016646096,-151.0,0.00020821,2]
[368072195,1751016646106,-714.22,0.00020821,2]
[368072196,1751016646118,-307.4082959,0.00020849,2]
[368072197,1751016646131,-356.8872515,0.00020877,2]
[368072198,1751016646140,-152.145735,0.00020897,2]
[368072199,1751016646150,-151.0,0.00020897,2]
[368072200,1751016646159,-252.52113,0.00020897,2]
[368072201,1751016646168,-5000.0,0.00020897,2]
[368072202,1751016646177,-420.0,0.00020898,2]
[368072204,1751016646187,-229.226234,0.000209,2]
[368072206,1751016646196,-151.0,0.000209,2]
[368072207,1751016646205,-360.129631,0.000209,2]
[368072208,1751016646214,-151.0,0.000209,2]
[368072209,1751016646224,-151.0,0.000209,2]
[368072210,1751016646234,-166.696243,0.000209,2]
[368072211,1751016646243,-166.696243,0.000209,2]
[368072212,1751016646252,-500.0,0.00020967,2]
[368072213,1751016646262,-561.98398793,0.00020967,2]
[368072214,1751016646273,-1500.0,0.00020967,2]
[368072215,1751016646282,-1500.0,0.00020967,2]
[368072216,1751016646291,-366.1147399,0.00020986,2]
[368072217,1751016646301,-366.1147399,0.00020986,2]
[368072219,1751016646310,-2203.51829621,0.00020995,2]
[368072221,1751016646319,-151.0,0.00020998,2]
[368072223,1751016646328,-151.0,0.00020998,2]
[368072224,1751016646338,-151.0,0.00020998,2]
[368072225,1751016646347,-151.0,0.00020998,2]
[368072226,1751016646356,-151.0,0.00020998,2]
[368072227,1751016646365,-151.0,0.00020998,2]
[368072229,1751016646374,-151.0,0.00020998,2]
[368072231,1751016646386,-151.0,0.00020998,2]
[368072233,1751016646395,-1669.0,0.00020998,2]
[368072235,1751016646408,-151.0,0.00021,4]
[368072237,1751016646417,-2673.87906123,0.00021,2]
[368072239,1751016646427,-6932.90631914,0.00021,2]
[368072241,1751016646436,-152.807259,0.00021072,2]
[368072243,1751016646445,-151.0,0.00021072,2]
[368072245,1751016646454,-151.0,0.00021072,2]
[368072247,1751016646463,-151.0,0.00021072,2]
[368072249,1751016646475,-151.0,0.00021072,2]
[368072251,1751016646485,-236.279009,0.00021072,2]
[368072253,1751016646494,-151.0,0.00021072,2]
[368072255,1751016646503,-253.878886,0.00021072,2]
[368072257,1751016646512,-203.715758,0.00021072,2]
[368072259,1751016646522,-203.715758,0.00021072,2]
[368072260,1751016646531,-151.0,0.00021072,2]
[368072262,1751016646541,-151.0,0.00021072,2]
[368072264,1751016646551,-179.946367,0.00021072,2]
[368072266,1751016646560,-151.0,0.00021072,2]
[368072268,1751016646569,-151.0,0.00021072,2]
[368072270,1751016646578,-1052.281983,0.00021072,2]
[368072272,1751016646588,-1052.281983,0.00021072,2]
[368072274,1751016646597,-151.0,0.00021072,2]
[368072276,1751016646606,-151.0,0.00021072,2]
[368072278,1751016646615,-151.0,0.00021072,2]
[368072280,1751016646624,-912.0,0.00021079,2]
[368072282,1751016646633,-151.304449,0.00021095,2]
[368072284,1751016646644,-460.0,0.00021095,2]
[368072286,1751016646656,-151.0,0.00021095,2]
[368072288,1751016646666,-151.0,0.00021095,2]
[368072290,1751016646675,-151.0,0.00021095,2]
[368072292,1751016646686,-460.0,0.00021095,2]
[368072294,1751016646695,-477.99,0.00021095,2]
[368072296,1751016646706,-901.81,0.00021095,2]
[368072298,1751016646716,-151.0,0.00021095,2]
[368072300,1751016646727,-151.0,0.00021095,2]
[368072301,1751016646738,-151.0,0.00021095,2]
[368072303,1751016646747,-460.0,0.00021095,2]
[368072305,1751016646757,-182.422505,0.00021095,2]
[368072308,1751016646767,-460.0,0.00021095,2]
[368072310,1751016646776,-182.422505,0.00021095,2]
[368072311,1751016646786,-460.0,0.00021095,2]
[368072313,1751016646795,-460.0,0.00021095,2]
[368072315,1751016646805,-699.39,0.00021095,2]
[368072317,1751016646814,-460.0,0.00021095,2]
[368072319,1751016646823,-460.0,0.00021095,2]
[368072321,1751016646832,-294.71009,0.00021095,2]
[368072323,1751016646842,-294.71009,0.00021095,2]
[368072325,1751016646851,-460.0,0.00021095,2]
[368072327,1751016646860,-3819.43,0.00021095,2]
[368072329,1751016646871,-986.14,0.00021095,2]
[368072331,1751016646881,-2932.92,0.00021095,2]
[368072333,1751016646891,-460.0,0.00021095,2]
[368072335,1751016646901,-646.04,0.00021095,2]
[368072337,1751016646910,-642.68,0.00021095,2]
[368072339,1751016646920,-460.0,0.00021095,2]
[368072341,1751016646929,-1329.54,0.00021095,2]
[368072343,1751016646939,-484.59,0.00021095,2]
[368072345,1751016646949,-460.0,0.00021095,2]
[368072347,1751016646958,-460.0,0.00021095,2]
[368072349,1751016646968,-460.0,0.00021095,2]
[368072351,1751016646977,-1883.98,0.00021095,2]